bitfinex/quotes_BTCUSD_20250920
["timestamp","ask_amount","ask_price","bid_price","bid_amount"]
[1758403377322,0.02761773,116000.0,115990.0,0.80610894]
[1758403377671,0.00235773,116000.0,115990.0,0.80610894]
[1758403396633,0.00235773,116000.0,115990.0,1.20610894]
[1758403416906,0.00235773,116000.0,115990.0,1.29137861]
[1758403444605,0.00235773,116000.0,115990.0,1.02377861]
[1758403444811,0.02798773,116000.0,115990.0,1.29133861]
[1758403450764,0.02583773,116000.0,115990.0,1.29133861]
[1758403452837,0.00235773,116000.0,115990.0,1.29133861]
[1758403460442,0.00235773,116000.0,115990.0,1.02377861]
[1758403460639,0.00235773,116000.0,115990.0,1.29137861]
[1758403496253,0.02561773,116000.0,115990.0,1.29137861]
[1758403505181,0.02526,116000.0,115990.0,1.28937861]
[1758403505386,0.02626,116000.0,115990.0,1.29237861]
[1758403510836,0.02626,116000.0,115990.0,1.02477861]
[1758403511035,0.02626,116000.0,115990.0,1.29229861]
[1758403514999,0.02626,116000.0,115990.0,1.02439861]
[1758403517649,0.02626,116000.0,115990.0,0.75687861]
[1758403517825,0.02626,116000.0,115990.0,1.02439861]
[1758403518470,0.02824,116000.0,115990.0,1.02439861]
[1758403520003,0.02624,116000.0,115990.0,1.02139861]
[1758403520443,0.02824,116000.0,115990.0,1.02339861]
[1758403522016,0.00498,116000.0,115990.0,0.75281861]
[1758403522221,0.03058,116000.0,115990.0,1.01823861]
[1758403523959,0.03058,116000.0,115990.0,1.28613861]
[1758403526411,0.03058,116000.0,115990.0,1.28827861]
[1758403529790,0.02762,116000.0,115990.0,1.28827861]
[1758403536533,0.02762,116000.0,115990.0,1.02075861]
[1758403536707,0.02762,116000.0,115990.0,1.28827861]
[1758403540236,0.02762,116000.0,115990.0,1.29122861]
[1758403546037,0.02564,116000.0,115990.0,1.29122861]
[1758403551166,0.003,116000.0,115990.0,1.29122861]
[1758403557543,0.007,116000.0,115990.0,1.29122861]
[1758403635250,0.00659409,116000.0,115990.0,1.2891835]
[1758403638127,0.00659409,116000.0,115990.0,1.28910708]
[1758403650883,0.00659409,116000.0,115990.0,1.62910708]
[1758403665126,1e-08,116000.0,115990.0,1.67910708]
[1758403668028,1e-08,116000.0,115990.0,1.67610708]
[1758403668455,1e-08,116000.0,115990.0,1.67410708]
[1758403668647,1e-08,116000.0,115990.0,1.68610708]
[1758403669270,1e-08,116000.0,115990.0,1.69010708]
[1758403669691,0.0225,116020.0,116010.0,0.17239893]
[1758403669896,0.0225,116020.0,116010.0,0.7944886]
[1758403670134,0.02453,116020.0,116010.0,0.7966986]
[1758403670340,0.02453,116020.0,116010.0,1.1966986]
[1758403670544,0.02453,116020.0,116010.0,1.22260983]
[1758403670908,0.02599984,116020.0,116010.0,1.22460983]
[1758403671114,0.02699984,116020.0,116010.0,1.22760983]
[1758403674821,0.00449984,116020.0,116010.0,1.57059983]
[1758403675078,0.00246984,116020.0,116010.0,1.57059983]
[1758403675723,0.02496984,116020.0,116010.0,1.57059983]
[1758403680249,0.02496984,116020.0,116010.0,1.57071283]
[1758403683252,0.00246984,116020.0,116010.0,1.57071283]
[1758403699525,0.00246984,116020.0,116010.0,1.57139283]
[1758403721350,0.004,116030.0,116020.0,0.17238407]
[1758403721535,0.00404695,116030.0,116020.0,0.87253374]
[1758403721742,0.00404695,116030.0,116020.0,1.14043374]
[1758403722107,0.00404695,116030.0,116020.0,1.56634144]
[1758403722436,0.00404695,116030.0,116020.0,1.56734144]
[1758403722851,0.00704695,116030.0,116020.0,1.56834144]
[1758403723247,0.0004,116040.0,116030.0,0.51236921]
[1758403723471,0.0004,116040.0,116030.0,0.87045888]
[1758403723670,0.0004,116040.0,116030.0,0.87255888]
[1758403723876,0.0004,116040.0,116030.0,1.27255888]
[1758403724078,0.0004,116040.0,116030.0,1.29846408]
[1758403724279,0.0014,116040.0,116030.0,1.29846408]
[1758403724714,0.0014,116040.0,116030.0,1.29856408]
[1758403724914,0.0004,116040.0,116030.0,1.29856408]
[1758403725072,0.0014,116040.0,116030.0,1.30256408]
[1758403725279,0.0034,116040.0,116030.0,1.31156408]
[1758403726369,0.0034,116040.0,116030.0,1.57946408]
[1758403726593,0.0034,116040.0,116030.0,1.64430953]
[1758403727507,0.0034,116040.0,116030.0,1.65303502]
[1758403736033,0.0034,116040.0,116030.0,1.38339502]
[1758403736239,0.02866,116040.0,116030.0,1.65307502]
[1758403736743,0.02866,116040.0,116030.0,1.64989502]
[1758403741245,0.02866,116040.0,116030.0,1.38021502]
[1758403741449,0.02866,116040.0,116030.0,1.64997502]
[1758403751602,0.02866,116040.0,116030.0,1.65299502]
[1758403758065,0.02654,116040.0,116030.0,1.65299502]
[1758403792126,0.02654,116040.0,116030.0,2.02758015]
[1758403793814,0.0034,116040.0,116030.0,2.02758015]
[1758403807746,0.0034,116040.0,116030.0,2.40216528]
[1758403817896,0.0034,116040.0,116030.0,2.40100528]
[1758403825083,0.0034,116040.0,116030.0,2.02642015]
[1758403825503,0.0034,116040.0,116030.0,1.65183502]
[1758403825729,0.0034,116040.0,116030.0,2.02642015]
[1758403827902,0.0034,116040.0,116030.0,2.40097144]
[1758403844438,0.0034,116040.0,116030.0,1.65183502]
[1758403844852,0.0034,116040.0,116030.0,2.40097144]
[1758403848277,0.0034,116040.0,116030.0,1.65183502]
[1758403848476,0.0034,116040.0,116030.0,2.40097144]
[1758403851064,0.0034,116040.0,116030.0,1.65183502]
[1758403851278,0.0034,116040.0,116030.0,2.40097144]
[1758403851681,0.0034,116040.0,116030.0,1.65183502]
[1758403851877,0.0034,116040.0,116030.0,2.40097144]
[1758403859322,0.00851,116040.0,116030.0,1.11021502]
[1758403859536,0.03209,116040.0,116030.0,1.37941502]
[1758403859754,0.03209,116040.0,116030.0,1.75398323]
[1758403859971,0.03209,116040.0,116030.0,1.75694323]
[1758403860172,0.03209,116040.0,116030.0,1.38237502]
[1758403860377,0.03209,116040.0,116030.0,2.13151144]
[1758403861235,0.03209,116040.0,116030.0,1.38237502]
[1758403861455,0.03209,116040.0,116030.0,2.13151144]
[1758403866033,0.03209,116040.0,116030.0,2.13143144]
[1758403868852,0.03209,116040.0,116030.0,2.39933144]
[1758403873624,0.03209,116040.0,116030.0,2.12725144]
[1758403873937,0.03209,116040.0,116030.0,2.39909144]
[1758403874588,0.03209,116040.0,116030.0,2.40109144]
[1758403877096,0.03209,116040.0,116030.0,1.75268323]
[1758403877097,0.03255,116040.0,116030.0,1.75268323]
[1758403877226,0.03255,116040.0,116030.0,2.39893144]
[1758403880065,0.03255,116040.0,116030.0,2.40093144]
[1758403883592,0.03255,116040.0,116030.0,1.65179502]
[1758403883795,0.03255,116040.0,116030.0,2.40093144]
[1758403885400,0.02954,116040.0,116030.0,2.40093144]
[1758403887893,0.02954,116040.0,116030.0,2.02642483]
[1758403889263,0.02954,116040.0,116030.0,2.01769934]
[1758403890257,0.02954,116040.0,116030.0,1.65160595]
[1758403890459,0.02954,116040.0,116030.0,2.02623576]
[1758403894655,0.02954,116040.0,116030.0,2.02945576]
[1758403895914,0.02744,116040.0,116030.0,2.02945576]
[1758403897788,0.0034,116040.0,116030.0,2.02945576]
[1758403906283,0.0034,116040.0,116030.0,1.65482595]
[1758403906486,0.0034,116040.0,116030.0,2.02945576]
[1758403916544,0.0034,116040.0,116030.0,1.65482595]
[1758403916704,0.0034,116040.0,116030.0,2.02945576]
[1758403920100,0.0034,116040.0,116030.0,2.02091934]
[1758403927810,0.0034,116040.0,116030.0,1.64628953]
[1758403945682,0.0034,116040.0,116030.0,1.37838953]
[1758403953799,0.0034,116040.0,116030.0,1.10670953]
[1758403954001,0.0034,116040.0,116030.0,1.37650953]
[1758404042953,0.02865,116040.0,116030.0,1.10348953]
[1758404043134,0.02865,116040.0,116030.0,1.37252953]
[1758404046253,0.0034,116040.0,116030.0,1.37252953]
[1758404046450,0.0034,116040.0,116030.0,1.37555953]
[1758404047085,0.02753,116040.0,116030.0,1.37555953]
[1758404060587,0.0034,116040.0,116030.0,1.37555953]
[1758404100827,0.0001,116050.0,116040.0,0.51235436]
[1758404101034,0.0001,116050.0,116040.0,1.13766403]
[1758404101206,0.0005,116060.0,116050.0,0.1723395]
[1758404101463,0.0005,116060.0,116050.0,1.53764917]
[1758404101665,0.0005,116060.0,116050.0,1.53964917]
[1758404102249,0.0005,116060.0,116050.0,1.56554999]
[1758404103067,0.0005,116060.0,116050.0,1.56764999]
[1758404103424,0.0004,116060.0,116050.0,1.56764999]
[1758404104085,0.0054,116060.0,116050.0,1.56864999]
[1758404104295,0.0004,116060.0,116050.0,1.56764999]
[1758404108320,0.0004,116060.0,116050.0,1.56760999]
[1758404120514,0.0004,116060.0,116050.0,1.29872999]
[1758404120722,0.0004,116060.0,116050.0,1.56752999]
[1758404121340,0.0004,116060.0,116050.0,1.29872999]
[1758404121551,0.0004,116060.0,116050.0,1.56752999]
[1758404123574,0.0004,116060.0,116050.0,1.29872999]
[1758404123945,0.0004,116060.0,116050.0,1.56752999]
[1758404124362,0.0004,116060.0,116050.0,1.29872999]
[1758404124567,0.0004,116060.0,116050.0,1.56752999]
[1758404133493,0.0004,116060.0,116050.0,1.29872999]
[1758404133903,0.0004,116060.0,116050.0,1.56748999]
[1758404134926,0.0004,116060.0,116050.0,1.29872999]
[1758404135152,0.0004,116060.0,116050.0,1.56748999]
[1758404178541,0.0004,116060.0,116050.0,1.29958999]
[1758404189066,0.0004,116060.0,116050.0,1.56748999]
[1758404189287,0.0004,116060.0,116050.0,1.61748999]
[1758404191318,0.0004,116060.0,116050.0,1.71060999]
[1758404198007,0.00359,116070.0,116060.0,0.51232465]
[1758404198146,0.02637136,116070.0,116060.0,0.86615432]
[1758404198355,0.02840136,116070.0,116060.0,0.86836432]
[1758404198749,0.02840136,116070.0,116060.0,1.29426252]
[1758404199191,0.02521136,116070.0,116060.0,1.29426252]
[1758404199367,0.02621136,116070.0,116060.0,1.29626252]
[1758404199553,0.02521136,116070.0,116060.0,1.29526252]
[1758404199905,0.02621136,116070.0,116060.0,1.29726252]
[1758404200106,0.02621136,116070.0,116060.0,1.30026252]
[1758404200927,0.02621136,116070.0,116060.0,1.56816252]
[1758404202776,0.02621136,116070.0,116060.0,1.63435636]
[1758404203831,0.0045,116080.0,116070.0,0.17230981]
[1758404204035,0.02706,116080.0,116070.0,0.86609948]
[1758404204285,0.02909,116080.0,116070.0,0.86820948]
[1758404204497,0.02909,116080.0,116070.0,0.89410618]
[1758404205410,0.0054,116080.0,116070.0,1.29410618]
[1758404205612,0.0054,116080.0,116070.0,1.29733618]
[1758404206059,0.0054,116080.0,116070.0,1.29833618]
[1758404206662,0.0044,116080.0,116070.0,1.29733618]
[1758404207067,0.0054,116080.0,116070.0,1.30333618]
[1758404209902,0.0054,116080.0,116070.0,1.57123618]
[1758404215985,0.02806,116080.0,116070.0,1.57123618]
[1758404216238,0.03014,116080.0,116070.0,1.57123618]
[1758404216521,0.03014,116080.0,116070.0,1.56810618]
[1758404220515,0.03014,116080.0,116070.0,1.57122618]
[1758404220947,0.02806,116080.0,116070.0,1.57122618]
[1758404221691,0.02806,116080.0,116070.0,1.29958618]
[1758404221908,0.03014,116080.0,116070.0,1.56802618]
[1758404228897,0.03014,116080.0,116070.0,1.56798618]
[1758404230995,0.03014,116080.0,116070.0,1.29958618]
[1758404231210,0.03014,116080.0,116070.0,1.30008618]
[1758404232114,0.03014,116080.0,116070.0,1.03168618]
[1758404232365,0.03014,116080.0,116070.0,1.30008618]
[1758404233365,0.03014,116080.0,116070.0,1.30308618]
[1758404236505,0.03014,116080.0,116070.0,1.57098618]
[1758404241364,0.02806,116080.0,116070.0,1.57098618]
[1758404254064,0.02806,116080.0,116070.0,1.39867637]
[1758404254463,0.02806,116080.0,116070.0,1.57098618]
[1758404264992,0.0054,116080.0,116070.0,1.57098618]
[1758404279603,0.0054,116080.0,116070.0,1.39867637]
[1758404279774,0.0054,116080.0,116070.0,1.57098618]
[1758404280421,0.0054,116080.0,116070.0,1.30258618]
[1758404280661,0.0054,116080.0,116070.0,1.57090618]
[1758404287879,0.0054,116080.0,116070.0,1.30258618]
[1758404288082,0.03279,116080.0,116070.0,1.29789618]
[1758404288269,0.02986,116080.0,116070.0,1.29991618]
[1758404288525,0.0054,116080.0,116070.0,1.30293618]
[1758404298816,0.0054,116080.0,116070.0,1.57083618]
[1758404316021,0.00737,116080.0,116070.0,1.29949618]
[1758404316238,0.03391,116080.0,116070.0,1.48048651]
[1758404316667,0.03391,116080.0,116070.0,1.21258651]
[1758404317649,0.03391,116080.0,116070.0,0.94430651]
[1758404317901,0.03391,116080.0,116070.0,1.21258651]
[1758404331337,0.03391,116080.0,116070.0,1.21469651]
[1758404333494,0.03088,116080.0,116070.0,0.81469651]
[1758404333826,0.03088,116080.0,116070.0,1.21469651]
[1758404336542,0.03088,116080.0,116070.0,0.81469651]
[1758404337131,0.03088,116080.0,116070.0,1.21469651]
[1758404337352,0.03088,116080.0,116070.0,1.21767651]
[1758404339042,0.0054,116080.0,116070.0,1.30294618]
[1758404344019,0.03107,116080.0,116070.0,1.29809618]
[1758404344426,0.03406,116080.0,116070.0,1.30021618]
[1758404344627,0.03107,116080.0,116070.0,1.30021618]
[1758404345908,0.03107,116080.0,116070.0,1.30335618]
[1758404346760,0.03107,116080.0,116070.0,1.30328121]
[1758404351335,0.03107,116080.0,116070.0,1.67762872]
[1758404351574,0.0054,116080.0,116070.0,1.67762872]
[1758404355988,0.0054,116080.0,116070.0,1.3032303]
[1758404356235,0.0054,116080.0,116070.0,1.67762872]
[1758404357741,0.0054,116080.0,116070.0,2.36992714]
[1758404357935,0.0054,116080.0,116070.0,1.6211303]
[1758404358074,0.0054,116080.0,116070.0,2.36992714]
[1758404360616,0.97413,116090.0,116080.0,0.51229496]
[1758404360825,0.97413,116090.0,116080.0,1.61794147]
[1758404361030,0.97413,116090.0,116080.0,1.62006147]
[1758404361228,0.97413,116090.0,116080.0,2.04590377]
[1758404361853,0.97413,116090.0,116080.0,1.29720693]
[1758404362062,0.97413,116090.0,116080.0,2.04600377]
[1758404362698,0.97413,116090.0,116080.0,2.04700377]
[1758404367149,0.97413,116090.0,116080.0,1.77856377]
[1758404367379,0.97413,116090.0,116080.0,2.04852377]
[1758404370050,0.97413,116090.0,116080.0,1.29972693]
[1758404370275,0.97413,116090.0,116080.0,2.04852377]
[1758404372867,0.97413,116090.0,116080.0,1.29972693]
[1758404373038,0.97413,116090.0,116080.0,2.04852377]
[1758404373885,0.97413,116090.0,116080.0,2.05726194]
[1758404375951,0.97413,116090.0,116080.0,1.95063522]
[1758404384548,0.97413,116090.0,116080.0,1.5763651]
[1758404384743,0.97413,116090.0,116080.0,1.95063522]
[1758404389718,0.97413,116090.0,116080.0,1.68273522]
[1758404399684,0.97413,116090.0,116080.0,1.95063522]
[1758404400266,0.57536041,116090.0,116080.0,1.95063522]
[1758404400479,0.57536041,116090.0,116080.0,1.95039522]
[1758404400688,0.12601579,116090.0,116080.0,2.03054712]
[1758404400900,0.01044788,116090.0,116080.0,2.03054712]
[1758404401107,0.0004,116100.0,116090.0,0.22228012]
[1758404401339,1e-08,116100.0,116090.0,1.25272181]
[1758404401554,1e-08,116100.0,116090.0,1.25476181]
[1758404401760,1e-08,116100.0,116090.0,1.68074924]
[1758404402403,0.00100001,116100.0,116090.0,1.68874924]
[1758404402853,0.00100001,116100.0,116090.0,1.69274924]
[1758404404697,0.00100001,116100.0,116090.0,1.69290924]
[1758404404890,0.00100001,116100.0,116090.0,1.75727486]
[1758404405848,0.00100001,116100.0,116090.0,1.40411296]
[1758404406074,0.02994001,116100.0,116090.0,1.72207296]
[1758404406704,0.02994001,116100.0,116090.0,1.45207296]
[1758404407127,0.02994001,116100.0,116090.0,1.72215296]
[1758404407351,0.02994001,116100.0,116090.0,1.45207296]
[1758404407534,0.02994001,116100.0,116090.0,1.72215296]
[1758404407760,0.02994001,116100.0,116090.0,1.45425296]
[1758404410133,0.02994001,116100.0,116090.0,1.07998284]
[1758404410341,0.02994001,116100.0,116090.0,1.45425296]
[1758404410557,0.02994001,116100.0,116090.0,1.07998284]
[1758404410786,0.02994001,116100.0,116090.0,1.45425296]
[1758404411368,0.02994001,116100.0,116090.0,1.45630296]
[1758404413808,0.02694001,116100.0,116090.0,1.45630296]
[1758404416845,0.02994001,116100.0,116090.0,1.13417296]
[1758404417048,0.02994001,116100.0,116090.0,1.40425296]
[1758404420331,0.02994001,116100.0,116090.0,1.02998284]
[1758404420526,0.02994001,116100.0,116090.0,1.40425296]
[1758404425723,0.02994001,116100.0,116090.0,1.40417296]
[1758404426305,0.02994001,116100.0,116090.0,1.67207296]
[1758404428766,0.02994001,116100.0,116090.0,1.67411296]
[1758404429621,0.02994001,116100.0,116090.0,1.67407296]
[1758404429815,0.03084001,116100.0,116090.0,1.02780284]
[1758404429950,0.03084001,116100.0,116090.0,1.63772284]
[1758404433489,0.03084001,116100.0,116090.0,1.63976284]
[1758404434364,0.02784001,116100.0,116090.0,1.63976284]
[1758404437694,0.00312001,116100.0,116090.0,1.36984284]
[1758404437904,0.00312001,116100.0,116090.0,2.01396837]
[1758404439014,0.02784001,116100.0,116090.0,1.63968284]
[1758404439221,0.03087001,116100.0,116090.0,2.01396837]
[1758404440016,0.02784001,116100.0,116090.0,2.01396837]
[1758404448128,0.02784001,116100.0,116090.0,1.74606837]
[1758404448635,0.02784001,116100.0,116090.0,1.47622837]
[1758404448804,0.02784001,116100.0,116090.0,1.74594837]
[1758404448975,0.03087001,116100.0,116090.0,1.74594837]
[1758404449923,0.03087001,116100.0,116090.0,1.03166284]
[1758404450626,0.02784001,116100.0,116090.0,1.03166284]
[1758404453125,0.02784001,116100.0,116090.0,1.03170284]
[1758404456072,0.02784001,116100.0,116090.0,1.40598837]
[1758404456911,0.00100001,116100.0,116090.0,1.40916837]
[1758404458146,0.00100001,116100.0,116090.0,1.13940837]
[1758404458358,0.00100001,116100.0,116090.0,1.38328094]
[1758404460905,0.00100001,116100.0,116090.0,1.00899541]
[1758404461511,0.00100001,116100.0,116090.0,1.00895541]
[1758404463429,0.00301001,116100.0,116090.0,1.00895541]
[1758404463640,0.02800001,116100.0,116090.0,1.00895541]
[1758404470654,0.00301001,116100.0,116090.0,0.73605541]
[1758404470860,0.00301001,116100.0,116090.0,1.00569541]
[1758404471059,0.02946001,116100.0,116090.0,1.00569541]
[1758404471267,0.02946001,116100.0,116090.0,0.60569541]
[1758404471700,0.02624001,116100.0,116090.0,0.60569541]
[1758404471909,0.02423001,116100.0,116090.0,0.60874541]
[1758404472127,0.00100001,116100.0,116090.0,0.60874541]
[1758404473613,0.02423001,116100.0,116090.0,0.98303094]
[1758404473793,0.02629001,116100.0,116090.0,0.98303094]
[1758404477560,0.00306001,116100.0,116090.0,0.98303094]
[1758404478403,0.00100001,116100.0,116090.0,0.98303094]
[1758404484209,0.00100001,116100.0,116090.0,0.60874541]
[1758404484404,0.00100001,116100.0,116090.0,0.98303094]
[1758404491403,0.00100001,116100.0,116090.0,1.38303094]
[1758404491899,0.00100001,116100.0,116090.0,0.98303094]
[1758404492515,0.00100001,116100.0,116090.0,1.38303094]
[1758404497769,0.00100001,116100.0,116090.0,1.38302075]
[1758404498991,0.00100001,116100.0,116090.0,0.73910541]
[1758404499254,0.02792001,116100.0,116090.0,1.37945075]
[1758404499800,0.02792001,116100.0,116090.0,1.00517541]
[1758404500041,0.02792001,116100.0,116090.0,1.37945075]
[1758404503634,0.02792001,116100.0,116090.0,1.00517541]
[1758404503863,0.02792001,116100.0,116090.0,1.37945075]
[1758404504488,0.02792001,116100.0,116090.0,1.38238075]
[1758404505300,0.02792001,116100.0,116090.0,1.00810541]
[1758404505505,0.02792001,116100.0,116090.0,1.38238075]
[1758404506129,0.02586001,116100.0,116090.0,1.38238075]
[1758404506542,0.00100001,116100.0,116090.0,1.38238075]
[1758404506715,0.00100001,116100.0,116090.0,0.98238075]
[1758404507248,0.02586001,116100.0,116090.0,0.98238075]
[1758404508517,0.03089001,116100.0,116090.0,0.60517541]
[1758404509391,0.00603001,116100.0,116090.0,0.60501541]
[1758404509598,0.02792001,116100.0,116090.0,0.60501541]
[1758404509797,0.02792001,116100.0,116090.0,0.71033075]
[1758404510034,0.02792001,116100.0,116090.0,0.97929075]
[1758404510645,0.02792001,116100.0,116090.0,0.60501541]
[1758404510824,0.02692001,116100.0,116090.0,0.59701541]
[1758404511244,0.02792001,116100.0,116090.0,0.60101541]
[1758404511870,0.03089001,116100.0,116090.0,0.24474574]
[1758404512068,0.03089001,116100.0,116090.0,0.24074574]
[1758404512311,0.03089001,116100.0,116090.0,0.24274574]
[1758404512705,0.03099001,116100.0,116090.0,0.24074574]
[1758404513064,0.03099001,116100.0,116090.0,0.24174574]
[1758404513894,0.02999001,116100.0,116090.0,0.23774574]
[1758404514093,0.02999001,116100.0,116090.0,0.61202108]
[1758404514299,0.03099001,116100.0,116090.0,0.61402108]
[1758404516124,0.03981171,116100.0,116090.0,0.61402108]
[1758404520647,0.03981171,116100.0,116090.0,0.61610108]
[1758404529147,0.03684171,116100.0,116090.0,0.61610108]
[1758404534446,0.03684171,116100.0,116090.0,0.24182574]
[1758404534660,0.21126699,116100.0,116090.0,0.0031]
[1758404535082,0.23716419,116100.0,116090.0,0.0031]
[1758404535262,0.23716419,116100.0,116090.0,0.17538012]
[1758404535622,0.23716419,116100.0,116090.0,0.0031]
[1758404535824,0.23716419,116100.0,116090.0,0.17538012]
[1758404536504,0.23616419,116100.0,116090.0,0.17338012]
[1758404536681,0.23616419,116100.0,116090.0,0.17238012]
[1758404537026,0.24016419,116100.0,116090.0,0.17338012]
[1758404537829,0.06789891,116100.0,116090.0,0.17338012]
[1758404538219,0.50900419,116100.0,116090.0,0.17338012]
[1758404549017,0.50018249,116100.0,116090.0,0.17338012]
[1758404550170,0.50018249,116100.0,116090.0,0.0011]
[1758404550497,0.50018249,116100.0,116090.0,0.17338012]
[1758404551916,0.47620249,116100.0,116090.0,0.17338012]
[1758404552117,0.48476285,116100.0,116090.0,0.17338012]
[1758404552322,0.50868285,116100.0,116090.0,0.17338012]
[1758404552496,0.50868285,116100.0,116090.0,0.0011]
[1758404552701,0.50868285,116100.0,116090.0,0.17338012]
[1758404557991,0.88306026,116100.0,116090.0,0.17338012]
[1758404559315,0.97618026,116100.0,116090.0,0.17338012]
[1758404562534,0.60180285,116100.0,116090.0,0.17338012]
[1758404562865,0.97618026,116100.0,116090.0,0.17338012]
[1758404565046,0.60180285,116100.0,116090.0,0.17338012]
[1758404565357,0.60180285,116100.0,116090.0,0.0011]
[1758404566051,0.60180285,116100.0,116090.0,0.17338012]
[1758404567375,0.97618026,116100.0,116090.0,0.0011]
[1758404568815,0.97618026,116100.0,116090.0,0.17338012]
[1758404571724,0.60180285,116100.0,116090.0,0.17338012]
[1758404578097,0.62351249,116100.0,116090.0,0.17338012]
[1758404580362,0.60180285,116100.0,116090.0,0.17338012]
[1758404587829,0.97618026,116100.0,116090.0,0.17338012]
[1758404589731,0.97618026,116100.0,116090.0,0.0011]
[1758404589951,0.97618026,116100.0,116090.0,0.17338012]
[1758404590125,0.97618026,116100.0,116090.0,0.0011]
[1758404590478,0.97618026,116100.0,116090.0,0.17338012]
[1758404590895,0.97618026,116100.0,116090.0,0.0011]
[1758404591511,0.60180285,116100.0,116090.0,0.0011]
[1758404592518,0.60180285,116100.0,116090.0,0.17338012]
[1758404593338,0.97618026,116100.0,116090.0,0.17338012]
[1758404600099,0.97618026,116100.0,116090.0,0.0011]
[1758404601020,0.97618026,116100.0,116090.0,0.17338012]
[1758404603002,0.97618026,116100.0,116090.0,0.0011]
[1758404604156,0.60180285,116100.0,116090.0,0.0011]
[1758404604595,0.97618026,116100.0,116090.0,0.0011]
[1758404619799,0.60180285,116100.0,116090.0,0.0011]
[1758404619991,0.97620333,116100.0,116090.0,0.0011]
[1758404620939,0.97620333,116100.0,116090.0,0.17338012]
[1758404621955,0.60180285,116100.0,116090.0,0.17338012]
[1758404627804,0.60168285,116100.0,116090.0,0.17338012]
[1758404628225,0.57472285,116100.0,116090.0,0.17552012]
[1758404628430,0.57266285,116100.0,116090.0,0.17850012]
[1758404628649,0.60215285,116100.0,116090.0,0.17338012]
[1758404630640,1.48709267,116100.0,116090.0,0.0011]
[1758404630830,1.50123962,116100.0,116090.0,0.0011]
[1758404631065,0.85811914,116100.0,116090.0,0.001]
[1758404631279,1.50123962,116100.0,116090.0,0.001]
[1758404631494,1.12683914,116100.0,116090.0,0.001]
[1758404631677,1.50023962,116100.0,116090.0,0.001]
[1758404631918,0.17228012,116090.0,116080.0,0.001]
[1758404632152,0.55274334,116090.0,116080.0,0.001]
[1758404632363,0.55480334,116090.0,116080.0,0.001]
[1758404632571,0.5761706,116090.0,116080.0,0.001]
[1758404632747,0.60207102,116090.0,116080.0,0.001]
[1758404633152,0.22777054,116090.0,116080.0,0.001]
[1758404633377,0.60217102,116090.0,116080.0,0.001]
[1758404633512,0.22777054,116090.0,116080.0,0.001]
[1758404633945,0.60217102,116090.0,116080.0,0.001]
[1758404634343,0.60417102,116090.0,116080.0,0.001]
[1758404634547,0.60517102,116090.0,116080.0,0.003]
[1758404642587,0.23077054,116090.0,116080.0,0.003]
[1758404642781,0.60517102,116090.0,116080.0,0.003]
[1758404645985,0.87385102,116090.0,116080.0,0.003]
[1758404646600,0.87385102,116090.0,116080.0,0.17529496]
[1758404648192,0.91034888,116090.0,116080.0,0.003]
[1758404651171,0.91034888,116090.0,116080.0,0.0029]
[1758404651766,1.33561855,116090.0,116080.0,0.0029]
[1758404652620,1.34167195,116090.0,116080.0,0.0029]
[1758404657203,1.34167358,116090.0,116080.0,0.0029]
[1758404658133,1.30517572,116090.0,116080.0,0.0029]
[1758404663497,1.39829572,116090.0,116080.0,0.0029]
[1758404663887,1.39829994,116090.0,116080.0,0.0029]
[1758404664864,1.02389946,116090.0,116080.0,0.0029]
[1758404665063,1.39829994,116090.0,116080.0,0.0029]
[1758404666100,1.48356961,116090.0,116080.0,0.0029]
[1758404672665,1.40637912,116090.0,116080.0,0.0029]
[1758404681924,1.40650921,116090.0,116080.0,0.0029]
[1758404684006,1.39843003,116090.0,116080.0,0.0029]
[1758404684211,1.40651325,116090.0,116080.0,0.0029]
[1758404693531,1.03198268,116090.0,116080.0,0.0029]
[1758404693704,1.49178292,116090.0,116080.0,0.0029]
[1758404695245,1.86631349,116090.0,116080.0,0.0029]
[1758404695455,1.49178292,116090.0,116080.0,0.0029]
[1758404701678,1.89696539,116090.0,116080.0,0.0029]
[1758404701889,1.95923507,116090.0,116080.0,0.0029]
[1758404702880,1.95922884,116090.0,116080.0,0.0029]
[1758404703885,1.85059164,116090.0,116080.0,0.0029]
[1758404704059,1.20746107,116090.0,116080.0,0.0029]
[1758404704285,1.47606107,116090.0,116080.0,0.0029]
[1758404705089,1.20746107,116090.0,116080.0,0.0029]
[1758404705312,1.47606107,116090.0,116080.0,0.0029]
[1758404705547,1.50924655,116090.0,116080.0,0.0029]
[1758404705718,1.88377712,116090.0,116080.0,0.0029]
[1758404713676,1.88377226,116090.0,116080.0,0.0029]
[1758404718889,1.88377229,116090.0,116080.0,0.0029]
[1758404728841,1.85058681,116090.0,116080.0,0.0029]
[1758404730981,1.85059346,116090.0,116080.0,0.0029]
[1758404741782,1.47610194,116090.0,116080.0,0.0029]
[1758404743089,1.47005324,116090.0,116080.0,0.0029]
[1758404743294,1.47611811,116090.0,116080.0,0.0029]
[1758404743442,1.56138779,116090.0,116080.0,0.0029]
[1758404746192,1.56138778,116090.0,116080.0,0.0029]
[1758404751242,1.54521481,116090.0,116080.0,0.0029]
[1758404751440,1.56138777,116090.0,116080.0,0.0029]
[1758404760048,1.45019604,116090.0,116080.0,0.00494]
[1758404762439,1.45333604,116090.0,116080.0,0.00494]
[1758404766258,1.45333585,116090.0,116080.0,0.00494]
[1758404768458,1.07876623,116090.0,116080.0,0.00494]
[1758404768861,1.45333585,116090.0,116080.0,0.00494]
[1758404769065,1.51196029,116090.0,116080.0,0.00494]
[1758404772779,1.51196029,116090.0,116080.0,0.0029]
[1758404778129,1.5119594,116090.0,116080.0,0.0029]
[1758404778487,1.50589547,116090.0,116080.0,0.0029]
[1758404778720,1.51195936,116090.0,116080.0,0.0029]
[1758404801911,1.88654884,116090.0,116080.0,0.0029]
[1758404807594,1.13738974,116090.0,116080.0,0.0029]
[1758404807795,1.88654884,116090.0,116080.0,0.0029]
[1758404810845,1.93268035,116090.0,116080.0,0.0029]
[1758404815709,1.93668035,116090.0,116080.0,0.0029]
[1758404817915,1.87805591,116090.0,116080.0,0.0029]
[1758404821302,1.12889681,116090.0,116080.0,0.0029]
[1758404821501,1.87805591,116090.0,116080.0,0.0029]
[1758404822963,1.12889681,116090.0,116080.0,0.0029]
[1758404823167,1.07812475,116090.0,116080.0,0.00487]
[1758404823363,1.4506443,116090.0,116080.0,0.00804]
[1758404823492,1.53591397,116090.0,116080.0,0.00804]
[1758404825758,1.55879397,116090.0,116080.0,0.00804]
[1758404829195,1.56088397,116090.0,116080.0,0.00804]
[1758404829495,1.56088397,116090.0,116080.0,0.00487]